[Event "Championnat d'Europe Rapide"]
[Date "2024.12.07"]
[White "Kalezic, Blazo"]
[Black "Frutuoso, Tiago"]
[WhiteElo "2382"]
[BlackElo "1831"]
[Round "3.42"]
[Result "1-0"]
[TimeControl "900+10"]

1. e4 {[%emt 00:00:03] [%clk 00:15:17]} e5 {[%emt 00:00:02] [%clk 00:15:18]} 2.
Nf3 {[%emt 00:00:03] [%clk 00:15:24]} Nc6 {[%emt 00:00:02] [%clk 00:15:26]} 3.
Bb5 {[%emt 00:00:03] [%clk 00:15:31]} a6 {[%emt 00:00:02] [%clk 00:15:34]} 4.
Ba4 {[%emt 00:00:01] [%clk 00:15:40]} Nf6 {[%emt 00:00:01] [%clk 00:15:42]} 5.
O-O {[%emt 00:00:03] [%clk 00:15:48]} Be7 {[%emt 00:00:01] [%clk 00:15:50]} 6.
Re1 {[%emt 00:00:03] [%clk 00:15:56]} b5 {[%emt 00:00:01] [%clk 00:15:59]} 7.
Bb3 {[%clk 00:16:05]} O-O {[%emt 00:00:03] [%clk 00:16:06]} 8. d3 {[%emt
00:00:02] [%clk 00:16:13]} Bb7 {[%emt 00:00:21] [%clk 00:15:56]} 9. c3 {[%emt
00:00:08] [%clk 00:16:15]} d6 {[%emt 00:00:27] [%clk 00:15:39]} 10. h3 {[%emt
00:00:25] [%clk 00:16:00]} Na5 {[%emt 00:00:03] [%clk 00:15:46]} 11. Bc2 {[%clk
00:16:08]} c5 {[%emt 00:00:01] [%clk 00:15:55]} 12. Nbd2 {[%emt 00:00:04] [%clk
00:16:14]} Re8 {[%emt 00:00:05] [%clk 00:16:01]} 13. Nf1 {[%emt 00:00:05] [%clk
00:16:19]} Bf8 {[%emt 00:00:04] [%clk 00:16:07]} 14. Ng3 {[%emt 00:00:06] [%clk
00:16:22]} g6 {[%emt 00:00:03] [%clk 00:16:15]} 15. Nh2 {[%emt 00:00:54] [%clk
00:15:38]} Bg7 {[%emt 00:00:15] [%clk 00:16:09]} 16. Qf3 {[%emt 00:00:58] [%clk
00:14:50]} d5 {[%emt 00:00:36] [%clk 00:15:43]} 17. Ng4 {[%emt 00:01:02] [%clk
00:13:59]} Nxg4 {[%emt 00:00:30] [%clk 00:15:24]} 18. hxg4 {[%emt 00:00:08]
[%clk 00:14:00]} c4 {[%emt 00:00:34] [%clk 00:15:00]} 19. dxc4 {[%emt 00:00:23]
[%clk 00:13:48]} dxc4 {[%emt 00:00:37] [%clk 00:14:33]} 20. g5 {[%emt 00:00:23]
[%clk 00:13:34]} Qe7 {[%emt 00:00:44] [%clk 00:13:59]} 21. Be3 {[%emt 00:01:00]
[%clk 00:12:43]} Nc6 {[%emt 00:01:05] [%clk 00:13:05]} 22. Qg4 {[%emt 00:00:25]
[%clk 00:12:26]} Rad8 {[%emt 00:00:22] [%clk 00:12:54]} 23. a3 {[%emt 00:00:16]
[%clk 00:12:20]} Bc8 {[%emt 00:00:40] [%clk 00:12:24]} 24. Qh4 {[%emt 00:00:22]
[%clk 00:12:07]} h6 {[%emt 00:00:13] [%clk 00:12:22]} 25. f3 {[%emt 00:01:47]
[%clk 00:10:30]} hxg5 {[%emt 00:00:17] [%clk 00:12:15]} 26. Bxg5 {[%emt
00:00:15] [%clk 00:10:26]} f6 {[%clk 00:12:25]} 27. Be3 {[%emt 00:00:15] [%clk
00:10:21]} Kf7 {[%emt 00:00:05] [%clk 00:12:30]} 28. Nf1 {[%emt 00:00:11] [%clk
00:10:19]} Rh8 {[%emt 00:00:19] [%clk 00:12:22]} 29. Qf2 {[%emt 00:00:02] [%clk
00:10:27]} Rh7 {[%emt 00:00:40] [%clk 00:11:51]} 30. Ng3 {[%emt 00:00:39] [%clk
00:09:59]} Rdh8 {[%emt 00:00:24] [%clk 00:11:37]} 31. Rad1 {[%emt 00:00:34]
[%clk 00:09:34]} Bh6 {[%emt 00:00:28] [%clk 00:11:20]} 32. Bc5 {[%emt 00:00:48]
[%clk 00:08:56]} Qc7 {[%emt 00:00:12] [%clk 00:11:18]} 33. Rd6 {[%emt 00:00:33]
[%clk 00:08:32]} Bf4 {[%emt 00:00:29] [%clk 00:10:59]} 34. Red1 {[%emt 00:00:33]
[%clk 00:08:10]} Ne7 {[%emt 00:00:52] [%clk 00:10:17]} 35. Be3 {[%emt 00:00:36]
[%clk 00:07:43]} Be6 {[%emt 00:00:39] [%clk 00:09:48]} 36. Rxa6 {[%emt 00:01:45]
[%clk 00:06:08]} Bc8 {[%emt 00:01:16] [%clk 00:08:42]} 37. Rad6 {[%emt 00:01:10]
[%clk 00:05:07]} f5 {[%emt 00:00:03] [%clk 00:08:50]} 38. exf5 {[%emt 00:00:09]
[%clk 00:05:09]} gxf5 {[%emt 00:00:02] [%clk 00:08:57]} 39. Kf1 {[%emt 00:00:32]
[%clk 00:04:46]} Bxg3 {[%emt 00:02:38] [%clk 00:06:30]} 40. Qxg3 {[%emt
00:00:02] [%clk 00:04:54]} Rh1+ {[%emt 00:00:14] [%clk 00:06:26]} 41. Bg1 {[%emt
00:01:19] [%clk 00:03:45]} f4 {[%emt 00:02:29] [%clk 00:04:07]} 42. Qg5 {[%emt
00:01:36] [%clk 00:02:19]} Rxg1+ {[%emt 00:01:24] [%clk 00:02:53]} 43. Kxg1
{[%emt 00:00:02] [%clk 00:02:27]} Qa7+ {[%emt 00:00:22] [%clk 00:02:41]} 44.
R1d4 {[%emt 00:00:02] [%clk 00:02:36]} exd4 {[%emt 00:00:57] [%clk 00:01:54]}
45. Qf6+ {[%emt 00:00:31] [%clk 00:02:15]} Ke8 {[%emt 00:00:36] [%clk 00:01:28]}
46. Qxh8+ {[%emt 00:00:02] [%clk 00:02:23]} Kf7 {[%emt 00:00:13] [%clk
00:01:25]} 47. Qf6+ {[%emt 00:00:02] [%clk 00:02:30]} Ke8 {[%emt 00:00:05] [%clk
00:01:31]} 48. Bg6+ {[%emt 00:00:02] [%clk 00:02:38]} Nxg6 {[%emt 00:00:04]
[%clk 00:01:36]} 49. Rd8# {[%emt 00:00:02] [%clk 00:02:47]} 1-0

[Site "Europe Echecs"]

[Event "Championnat d'Europe Rapide"]
[Date "2024.12.07"]
[White "Fedoseev, Vladimir"]
[Black "Vyval, Volodymyr"]
[WhiteElo "2709"]
[BlackElo "2269"]
[Round "3.43"]
[Result "1-0"]
[TimeControl "900+10"]

1. c4 {[%emt 00:00:04] [%clk 00:15:16]} g6 {[%emt 00:00:02] [%clk 00:15:18]} 2.
d4 {[%emt 00:00:06] [%clk 00:15:20]} Nf6 {[%emt 00:00:02] [%clk 00:15:25]} 3.
Nc3 {[%emt 00:00:02] [%clk 00:15:28]} d5 {[%emt 00:00:02] [%clk 00:15:34]} 4.
Qa4+ {[%emt 00:00:54] [%clk 00:14:44]} Bd7 {[%emt 00:00:16] [%clk 00:15:28]} 5.
Qd1 {[%emt 00:00:07] [%clk 00:14:46]} Bc8 {[%emt 00:00:07] [%clk 00:15:31]} 6.
Bg5 {[%emt 00:00:25] [%clk 00:14:30]} Ne4 {[%emt 00:00:12] [%clk 00:15:29]} 7.
h4 {[%emt 00:00:09] [%clk 00:14:30]} Nxc3 {[%emt 00:00:33] [%clk 00:15:07]} 8.
bxc3 {[%emt 00:00:02] [%clk 00:14:39]} Bg7 {[%emt 00:00:51] [%clk 00:14:25]} 9.
e3 {[%emt 00:00:33] [%clk 00:14:16]} c5 {[%emt 00:00:20] [%clk 00:14:16]} 10.
Nf3 {[%emt 00:00:16] [%clk 00:14:10]} Nc6 {[%emt 00:00:17] [%clk 00:14:09]} 11.
cxd5 {[%emt 00:00:05] [%clk 00:14:15]} Qxd5 {[%emt 00:00:02] [%clk 00:14:17]}
12. Qb3 {[%emt 00:00:14] [%clk 00:14:10]} Qxb3 {[%emt 00:00:22] [%clk 00:14:05]}
13. axb3 {[%emt 00:00:02] [%clk 00:14:18]} cxd4 {[%emt 00:00:59] [%clk
00:13:16]} 14. exd4 {[%emt 00:00:02] [%clk 00:14:26]} e5 {[%emt 00:00:06] [%clk
00:13:20]} 15. dxe5 {[%emt 00:04:09] [%clk 00:10:27]} Nxe5 {[%emt 00:00:06]
[%clk 00:13:23]} 16. Bb5+ {[%emt 00:00:21] [%clk 00:10:16]} Nc6 {[%emt 00:01:02]
[%clk 00:12:31]} 17. O-O {[%emt 00:00:40] [%clk 00:09:46]} O-O {[%emt 00:02:08]
[%clk 00:10:34]} 18. Rfc1 {[%emt 00:00:07] [%clk 00:09:50]} Bd7 {[%emt 00:01:13]
[%clk 00:09:31]} 19. Nd2 {[%emt 00:00:01] [%clk 00:09:58]} a6 {[%emt 00:00:17]
[%clk 00:09:24]} 20. Be2 {[%emt 00:00:17] [%clk 00:09:50]} Ne5 {[%emt 00:00:28]
[%clk 00:09:08]} 21. Ne4 {[%emt 00:01:06] [%clk 00:08:54]} Bc6 {[%emt 00:00:18]}
22. Nd6 {[%clk 00:08:57]} h6 {[%emt 00:00:18] [%clk 00:08:58]} 23. Be7 {[%emt
00:00:03] [%clk 00:09:04]} Rfb8 {[%emt 00:00:11] [%clk 00:08:57]} 24. f4 {[%emt
00:00:01] [%clk 00:09:12]} Nd7 {[%emt 00:01:03] [%clk 00:08:05]} 25. Bc4 {[%emt
00:00:01] [%clk 00:09:21]} Kh7 {[%emt 00:00:57] [%clk 00:07:18]} 26. Bxf7 {[%emt
00:00:31] [%clk 00:08:59]} Nf6 {[%emt 00:00:55] [%clk 00:06:33]} 27. f5 {[%emt
00:00:18] [%clk 00:08:51]} gxf5 {[%emt 00:00:15] [%clk 00:06:28]} 28. Nxf5
{[%emt 00:00:02] [%clk 00:08:58]} Nd5 {[%emt 00:00:30] [%clk 00:06:09]} 29. Bd6
{[%emt 00:02:09] [%clk 00:06:59]} Nxc3 {[%emt 00:00:33] [%clk 00:05:46]} 30. Re1
{[%emt 00:02:15] [%clk 00:04:54]} Ne2+ {[%emt 00:00:39] [%clk 00:05:17]} 31.
Rxe2 {[%emt 00:00:03] [%clk 00:05:01]} Bxa1 {[%emt 00:00:02] [%clk 00:05:25]}
32. Re6 {[%emt 00:00:10] [%clk 00:04:59]} Bg7 {[%emt 00:00:31] [%clk 00:05:05]}
33. Bg6+ {[%emt 00:00:36] [%clk 00:04:33]} Kh8 {[%emt 00:00:37] [%clk 00:04:38]}
34. Re7 {[%emt 00:00:02] [%clk 00:04:42]} Rg8 {[%emt 00:03:29] [%clk 00:01:20]}
35. Be5 {[%emt 00:00:17]} 1-0

[Site "Europe Echecs"]

[Event "Championnat d'Europe Rapide"]
[Date "2024.12.07"]
[White "Ragger, Markus"]
[Black "Domalchuk-Jonasson, Aleksandr"]
[WhiteElo "2577"]
[BlackElo "2377"]
[Round "3.44"]
[Result "1-0"]
[TimeControl "900+10"]

1. d4 {[%clk 00:15:19]} d5 {[%emt 00:00:12] [%clk 00:15:08]} 2. c4 {[%emt
00:00:02] [%clk 00:15:28]} e6 {[%emt 00:00:03] [%clk 00:15:14]} 3. Nf3 {[%emt
00:00:02] [%clk 00:15:36]} Nf6 {[%emt 00:00:30] [%clk 00:14:55]} 4. g3 {[%emt
00:00:02] [%clk 00:15:44]} Be7 {[%emt 00:01:17] [%clk 00:13:48]} 5. Bg2 {[%emt
00:00:02] [%clk 00:15:52]} O-O {[%emt 00:00:02] [%clk 00:13:55]} 6. O-O {[%emt
00:00:02] [%clk 00:16:00]} dxc4 {[%emt 00:00:02] [%clk 00:14:03]} 7. Qc2 {[%emt
00:00:01] [%clk 00:16:09]} b5 {[%emt 00:00:01] [%clk 00:14:12]} 8. a4 {[%emt
00:00:02] [%clk 00:16:18]} b4 {[%emt 00:00:01] [%clk 00:14:21]} 9. Nbd2 {[%emt
00:00:15] [%clk 00:16:13]} Bb7 {[%emt 00:01:35] [%clk 00:12:56]} 10. Nxc4 {[%emt
00:00:03] [%clk 00:16:20]} c5 {[%emt 00:00:56] [%clk 00:12:09]} 11. dxc5 {[%emt
00:00:05] [%clk 00:16:25]} Be4 {[%emt 00:00:04] [%clk 00:12:15]} 12. Qd2 {[%emt
00:00:03] [%clk 00:16:32]} Bxc5 {[%emt 00:01:59] [%clk 00:10:26]} 13. Qxd8
{[%emt 00:00:09] [%clk 00:16:34]} Rxd8 {[%emt 00:00:01] [%clk 00:10:34]} 14.
Nfe5 {[%emt 00:00:01] [%clk 00:16:42]} Bxg2 {[%emt 00:00:49] [%clk 00:09:55]}
15. Kxg2 {[%emt 00:00:02] [%clk 00:16:50]} Nbd7 {[%emt 00:01:13] [%clk
00:08:52]} 16. Bg5 {[%emt 00:01:33] [%clk 00:15:27]} Nxe5 {[%emt 00:01:15] [%clk
00:07:48]} 17. Nxe5 {[%emt 00:00:01] [%clk 00:15:36]} Rd5 {[%emt 00:00:47] [%clk
00:07:10]} 18. Bxf6 {[%emt 00:00:10] [%clk 00:15:37]} gxf6 {[%emt 00:00:01]
[%clk 00:07:19]} 19. Nd3 {[%clk 00:15:46]} Bd6 {[%emt 00:00:48] [%clk 00:06:42]}
20. Rfc1 {[%emt 00:00:30] [%clk 00:15:26]} a5 {[%emt 00:02:06] [%clk 00:04:46]}
21. Rc4 {[%emt 00:01:09] [%clk 00:14:27]} f5 {[%emt 00:00:21] [%clk 00:04:35]}
22. Rac1 {[%emt 00:00:58] [%clk 00:13:40]} Kg7 {[%emt 00:00:16] [%clk 00:04:29]}
23. b3 {[%emt 00:01:03] [%clk 00:12:46]} Rd8 {[%emt 00:03:14] [%clk 00:01:25]}
24. Rc8 {[%emt 00:00:41] [%clk 00:12:15]} Rd7 {[%emt 00:00:29] [%clk 00:01:07]}
25. Nb2 {[%emt 00:00:22] [%clk 00:12:03]} Be7 {[%emt 00:00:29] [%clk 00:00:47]}
26. R1c7 {[%emt 00:01:12] [%clk 00:11:01]} Rxc7 {[%emt 00:00:07] [%clk
00:00:51]} 27. Rxc7 {[%clk 00:11:10]} Bd8 {[%emt 00:00:01] [%clk 00:01:00]} 28.
Rc8 {[%emt 00:00:10] [%clk 00:11:10]} Kf6 {[%emt 00:00:13] [%clk 00:00:57]} 29.
Nc4 {[%emt 00:00:18] [%clk 00:11:02]} Ke7 {[%emt 00:00:02] [%clk 00:01:05]} 30.
Ra8 {[%emt 00:00:20] [%clk 00:10:52]} Kd7 {[%emt 00:00:04] [%clk 00:01:11]} 31.
Kf3 {[%emt 00:00:31] [%clk 00:10:31]} Kc6 {[%emt 00:00:18] [%clk 00:01:03]} 32.
Ra6+ {[%emt 00:00:35] [%clk 00:10:06]} Kd7 {[%emt 00:00:29] [%clk 00:00:44]} 33.
e3 {[%emt 00:00:37] [%clk 00:09:40]} Bc7 {[%emt 00:00:03] [%clk 00:00:51]} 34.
Ke2 {[%emt 00:01:05] [%clk 00:08:45]} h6 {[%emt 00:00:15] [%clk 00:00:46]} 35.
Ra7 {[%emt 00:00:58] [%clk 00:07:56]} Kc6 {[%emt 00:00:16] [%clk 00:00:40]} 36.
Ra8 {[%emt 00:00:07] [%clk 00:08:00]} Bd8 {[%clk 00:00:49]} 37. Ra6+ {[%emt
00:00:08] [%clk 00:08:01]} Kd7 {[%emt 00:00:02] [%clk 00:00:56]} 38. Ra7+ {[%emt
00:00:09] [%clk 00:08:03]} Bc7 {[%emt 00:00:02] [%clk 00:01:05]} 39. Nb6+ {[%emt
00:00:01] [%clk 00:08:12]} Kc6 {[%emt 00:00:50] [%clk 00:00:25]} 40. Nxd5 {[%emt
00:00:03] [%clk 00:08:19]} exd5 {[%emt 00:00:03] [%clk 00:00:32]} 41. Kd3 {[%emt
00:00:16] [%clk 00:08:14]} h5 {[%emt 00:00:09] [%clk 00:00:33]} 42. Ra8 {[%emt
00:00:09] [%clk 00:08:14]} 1-0

[Site "Europe Echecs"]

[Event "Championnat d'Europe Rapide"]
[Date "2024.12.07"]
[White "Kusiak, Matej"]
[Black "Dardha, Daniel"]
[WhiteElo "2227"]
[BlackElo "2639"]
[Round "3.45"]
[Result "0-1"]
[TimeControl "900+10"]

1. e4 {[%emt 00:00:03] [%clk 00:15:17]} c6 {[%clk 00:15:19]} 2. Nc3 {[%emt
00:00:12] [%clk 00:15:15]} d5 {[%emt 00:00:02] [%clk 00:15:27]} 3. Nf3 {[%emt
00:00:02] [%clk 00:15:23]} dxe4 {[%emt 00:00:02] [%clk 00:15:35]} 4. Nxe4 {[%emt
00:00:01] [%clk 00:15:32]} Nf6 {[%emt 00:00:01] [%clk 00:15:44]} 5. d3 {[%emt
00:00:01] [%clk 00:15:41]} g6 {[%emt 00:00:12] [%clk 00:15:41]} 6. Nxf6+ {[%emt
00:00:23] [%clk 00:15:29]} exf6 {[%emt 00:00:02] [%clk 00:15:49]} 7. Be2 {[%emt
00:00:15] [%clk 00:15:24]} Bg7 {[%emt 00:00:07] [%clk 00:15:51]} 8. O-O {[%emt
00:00:07] [%clk 00:15:27]} O-O {[%emt 00:00:02] [%clk 00:15:58]} 9. Bd2 {[%emt
00:00:02] [%clk 00:15:35]} Nd7 {[%emt 00:00:04] [%clk 00:16:05]} 10. Bc3 {[%emt
00:00:02] [%clk 00:15:44]} Nb6 {[%emt 00:00:04] [%clk 00:16:11]} 11. b3 {[%emt
00:00:20] [%clk 00:15:34]} Nd5 {[%emt 00:00:26] [%clk 00:15:55]} 12. Bb2 {[%emt
00:00:01] [%clk 00:15:43]} Qa5 {[%emt 00:00:37] [%clk 00:15:28]} 13. Qd2 {[%emt
00:00:30] [%clk 00:15:23]} Qxd2 {[%emt 00:00:05] [%clk 00:15:32]} 14. Nxd2
{[%emt 00:00:03] [%clk 00:15:32]} f5 {[%emt 00:00:05] [%clk 00:15:37]} 15. Bxg7
{[%emt 00:00:06] [%clk 00:15:35]} Kxg7 {[%emt 00:00:02] [%clk 00:15:45]} 16. Bf3
{[%emt 00:00:56] [%clk 00:14:49]} Nc3 {[%emt 00:00:26] [%clk 00:15:29]} 17. Nb1
{[%emt 00:00:08] [%clk 00:14:52]} Nb5 {[%emt 00:00:01] [%clk 00:15:38]} 18. c3
{[%emt 00:00:51] [%clk 00:14:11]} Rd8 {[%emt 00:00:22] [%clk 00:15:26]} 19. a4
{[%emt 00:00:04] [%clk 00:14:18]} Nc7 {[%emt 00:00:20] [%clk 00:15:16]} 20. d4
{[%emt 00:00:36] [%clk 00:13:52]} Be6 {[%emt 00:00:02] [%clk 00:15:24]} 21. b4
{[%emt 00:01:43] [%clk 00:12:19]} a5 {[%emt 00:00:14] [%clk 00:15:19]} 22. b5
{[%emt 00:01:09] [%clk 00:11:20]} cxb5 {[%emt 00:01:01] [%clk 00:14:28]} 23.
axb5 {[%emt 00:00:04] [%clk 00:11:27]} Nxb5 {[%emt 00:03:15] [%clk 00:11:22]}
24. Bxb7 {[%emt 00:00:35] [%clk 00:11:02]} Ra7 {[%emt 00:01:45] [%clk 00:09:48]}
25. Bc6 {[%emt 00:01:50] [%clk 00:09:22]} Nd6 {[%emt 00:01:11] [%clk 00:08:47]}
26. Na3 {[%emt 00:04:13] [%clk 00:05:20]} Rc8 {[%emt 00:00:25] [%clk 00:08:32]}
27. d5 {[%emt 00:00:25] [%clk 00:05:04]} Bd7 {[%emt 00:00:01] [%clk 00:08:40]}
28. c4 {[%emt 00:02:01] [%clk 00:03:14]} Bxc6 {[%emt 00:00:13] [%clk 00:08:37]}
29. dxc6 {[%emt 00:00:02] [%clk 00:03:22]} Rxc6 {[%emt 00:00:35] [%clk
00:08:12]} 30. Nb5 {[%emt 00:00:06] [%clk 00:03:25]} Ra8 {[%emt 00:01:00] [%clk
00:07:22]} 31. Nxd6 {[%emt 00:00:10] [%clk 00:03:25]} Rxd6 {[%emt 00:00:02]
[%clk 00:07:31]} 32. c5 {[%emt 00:00:09] [%clk 00:03:26]} Rc6 {[%emt 00:00:05]
[%clk 00:07:36]} 33. Rfc1 {[%emt 00:00:03] [%clk 00:03:34]} Kf6 {[%emt 00:00:03]
[%clk 00:07:42]} 34. f4 {[%emt 00:00:38] [%clk 00:03:06]} Ra7 {[%emt 00:01:08]
[%clk 00:06:45]} 35. Kf2 {[%emt 00:00:15] [%clk 00:03:01]} Ke6 {[%emt 00:00:45]
[%clk 00:06:10]} 36. Ra2 {[%emt 00:00:37] [%clk 00:02:34]} Kd7 {[%emt 00:00:35]
[%clk 00:05:45]} 37. g3 {[%emt 00:01:59] [%clk 00:00:45]} Kc7 {[%emt 00:00:20]
[%clk 00:05:34]} 38. Ra4 {[%emt 00:00:24] [%clk 00:00:31]} Re6 {[%emt 00:00:20]
[%clk 00:05:24]} 39. Rca1 {[%emt 00:00:04] [%clk 00:00:38]} Rea6 {[%clk
00:05:32]} 40. Rc1 {[%emt 00:00:02] [%clk 00:00:46]} Kc6 {[%emt 00:00:08] [%clk
00:05:35]} 41. Ke3 {[%emt 00:00:20] [%clk 00:00:36]} Re7+ {[%emt 00:00:13] [%clk
00:05:32]} 42. Kd3 {[%emt 00:00:02] [%clk 00:00:45]} Rd7+ {[%emt 00:00:01] [%clk
00:05:40]} 43. Rd4 {[%emt 00:00:39] [%clk 00:00:16]} Rd5 {[%emt 00:00:38] [%clk
00:05:12]} 44. Rxd5 {[%emt 00:00:03] [%clk 00:00:23]} Kxd5 {[%emt 00:00:02]
[%clk 00:05:21]} 45. Kc3 {[%emt 00:00:07] [%clk 00:00:26]} Kxc5 {[%emt 00:00:19]
[%clk 00:05:12]} 46. Kb3+ {[%emt 00:00:01] [%clk 00:00:35]} Kd6 {[%emt 00:00:01]
[%clk 00:05:20]} 47. Ka4 {[%emt 00:00:01] [%clk 00:00:44]} Ra7 {[%emt 00:00:01]
[%clk 00:05:29]} 48. Rd1+ {[%emt 00:00:03] [%clk 00:00:51]} Ke6 {[%emt 00:00:05]
[%clk 00:05:34]} 49. Rd2 {[%emt 00:00:01] [%clk 00:01:00]} h6 {[%emt 00:00:01]
[%clk 00:05:42]} 50. h4 {[%emt 00:00:01] [%clk 00:01:09]} Kf6 {[%emt 00:01:15]
[%clk 00:04:37]} 51. Rd6+ {[%emt 00:00:02] [%clk 00:01:18]} Kg7 {[%emt 00:00:01]
[%clk 00:04:46]} 52. Rd5 {[%emt 00:00:03] [%clk 00:01:25]} Rc7 {[%emt 00:00:06]
[%clk 00:04:49]} 53. Rd3 {[%emt 00:00:31] [%clk 00:01:04]} Rc5 {[%emt 00:00:01]
[%clk 00:04:57]} 54. Kb3 {[%emt 00:00:01] [%clk 00:01:13]} g5 {[%emt 00:00:18]
[%clk 00:04:49]} 55. h5 {[%emt 00:00:15] [%clk 00:01:09]} gxf4 {[%emt 00:00:03]
[%clk 00:04:56]} 56. gxf4 {[%emt 00:00:01] [%clk 00:01:17]} Rb5+ {[%emt
00:00:01] [%clk 00:05:05]} 57. Ka3 {[%emt 00:01:01] [%clk 00:00:25]} Rb4 {[%emt
00:00:02] [%clk 00:05:13]} 58. Rf3 {[%emt 00:00:01] [%clk 00:00:35]} Kf6 {[%emt
00:00:02] [%clk 00:05:21]} 59. Rf1 {[%emt 00:00:02] [%clk 00:00:43]} Ke6 {[%emt
00:00:08] [%clk 00:05:22]} 60. Rf2 {[%emt 00:00:27] [%clk 00:00:26]} Kd5 {[%emt
00:00:47] [%clk 00:04:45]} 61. Rd2+ {[%emt 00:00:04] [%clk 00:00:32]} Rd4 {[%emt
00:00:04] [%clk 00:04:51]} 62. Rf2 {[%emt 00:00:05] [%clk 00:00:37]} Ke4 {[%emt
00:00:03] [%clk 00:04:57]} 63. Rf1 {[%emt 00:00:32] [%clk 00:00:15]} a4 {[%emt
00:00:10] [%clk 00:04:58]} 64. Ka2 {[%emt 00:00:13] [%clk 00:00:12]} Ke3 {[%emt
00:00:03] [%clk 00:05:05]} 65. Ka3 {[%emt 00:00:02] [%clk 00:00:21]} Rxf4 {[%emt
00:00:09] [%clk 00:05:05]} 66. Re1 {[%clk 00:00:30]} Kf3 {[%emt 00:00:03] [%clk
00:05:13]} 67. Re7 {[%emt 00:00:10]} Rh4 {[%clk 00:05:16]} 68. Rxf7 {[%emt
00:00:02] [%clk 00:00:45]} Rxh5 {[%emt 00:00:04] [%clk 00:05:22]} 69. Kxa4
{[%emt 00:00:01] [%clk 00:00:54]} f4 {[%emt 00:00:02] [%clk 00:05:31]} 70. Kb4
{[%emt 00:00:03] [%clk 00:01:01]} Rd5 {[%emt 00:00:03] [%clk 00:05:38]} 71. Kc4
{[%emt 00:00:01] [%clk 00:01:10]} Rd8 {[%emt 00:00:01] [%clk 00:05:46]} 72. Rh7
{[%emt 00:00:02] [%clk 00:01:19]} Kf2 {[%emt 00:00:03] [%clk 00:05:53]} 73. Rxh6
{[%emt 00:00:03] [%clk 00:01:25]} f3 {[%emt 00:00:01] [%clk 00:06:02]} 74. Kc3
{[%emt 00:00:41] [%clk 00:00:54]} Kf1 {[%emt 00:00:02] [%clk 00:06:10]} 75. Rg6
{[%emt 00:00:19] [%clk 00:00:45]} f2 {[%emt 00:00:03] [%clk 00:06:17]} 76. Kc2
{[%emt 00:00:38] [%clk 00:00:18]} Rd5 {[%emt 00:00:04] [%clk 00:06:22]} 77. Kc3
{[%emt 00:00:05]} Ke2 {[%clk 00:06:30]} 78. Re6+ {[%emt 00:00:03] [%clk
00:00:33]} Kf3 {[%emt 00:00:01] [%clk 00:06:39]} 79. Rf6 {[%emt 00:00:03] [%clk
00:00:40]} Kg3 {[%emt 00:00:02] [%clk 00:06:47]} 80. Kc2 {[%emt 00:00:24] [%clk
00:00:26]} Rd4 {[%emt 00:00:03] [%clk 00:06:54]} 0-1

[Site "Europe Echecs"]

[Event "Championnat d'Europe Rapide"]
[Date "2024.12.07"]
[White "Grigorov, Grigor"]
[Black "Bogoevski, Jani"]
[WhiteElo "2497"]
[BlackElo "2144"]
[Round "3.46"]
[Result "1-0"]
[TimeControl "900+10"]

1. d4 {[%clk 00:15:17]} Nf6 {[%emt 00:00:06] [%clk 00:15:14]} 2. Nf3 {[%emt
00:00:02] [%clk 00:15:25]} d5 {[%emt 00:00:12] [%clk 00:15:12]} 3. c4 {[%emt
00:00:04] [%clk 00:15:31]} e6 {[%emt 00:00:03] [%clk 00:15:20]} 4. g3 {[%emt
00:00:02] [%clk 00:15:39]} Be7 {[%emt 00:00:03] [%clk 00:15:26]} 5. Bg2 {[%emt
00:00:03] [%clk 00:15:46]} O-O {[%emt 00:00:04] [%clk 00:15:33]} 6. Qd3 {[%emt
00:00:08] [%clk 00:15:48]} Nbd7 {[%emt 00:00:33] [%clk 00:15:11]} 7. O-O {[%emt
00:00:06] [%clk 00:15:51]} c6 {[%emt 00:00:06] [%clk 00:15:15]} 8. Nc3 {[%emt
00:00:08] [%clk 00:15:53]} b6 {[%emt 00:00:12] [%clk 00:15:13]} 9. e4 {[%emt
00:01:48] [%clk 00:14:16]} Ba6 {[%emt 00:00:52] [%clk 00:14:32]} 10. b3 {[%emt
00:00:06] [%clk 00:14:20]} c5 {[%emt 00:01:29] [%clk 00:13:12]} 11. exd5 {[%emt
00:00:06] [%clk 00:14:23]} exd5 {[%emt 00:00:11] [%clk 00:13:12]} 12. Rd1 {[%emt
00:00:10] [%clk 00:14:22]} Rc8 {[%emt 00:05:35] [%clk 00:07:47]} 13. Bf4 {[%emt
00:04:56] [%clk 00:09:37]} cxd4 {[%emt 00:02:06] [%clk 00:05:51]} 14. Nxd4
{[%emt 00:00:04] [%clk 00:09:42]} dxc4 {[%emt 00:02:29] [%clk 00:03:33]} 15. Qf3
{[%emt 00:00:02] [%clk 00:09:49]} cxb3 {[%emt 00:01:06] [%clk 00:02:38]} 16.
axb3 {[%emt 00:00:07] [%clk 00:09:52]} Nc5 {[%emt 00:00:45] [%clk 00:02:03]} 17.
Nc6 {[%emt 00:01:31] [%clk 00:08:31]} Qe8 {[%emt 00:00:08] [%clk 00:02:05]} 18.
Nxe7+ {[%emt 00:00:18] [%clk 00:08:23]} Qxe7 {[%emt 00:00:04] [%clk 00:02:11]}
19. Bd6 {[%emt 00:00:05] [%clk 00:08:26]} Bb7 {[%emt 00:00:40] [%clk 00:01:43]}
20. Bxe7 {[%emt 00:01:04] [%clk 00:07:32]} Bxf3 {[%emt 00:00:02] [%clk
00:01:51]} 21. Bxf8 {[%emt 00:00:07] [%clk 00:07:35]} Bxd1 {[%emt 00:00:28]
[%clk 00:01:33]} 22. Bxc5 {[%emt 00:00:10] [%clk 00:07:35]} Bxb3 {[%emt
00:00:09] [%clk 00:01:34]} 23. Bd4 {[%emt 00:00:04] [%clk 00:07:40]} Rd8 {[%emt
00:00:23] [%clk 00:01:23]} 24. Rxa7 {[%emt 00:00:13] [%clk 00:07:37]} 1-0

[Site "Europe Echecs"]